bitfinex-derivatives/quotes_ETHF0:USTF0_20250426
["timestamp","ask_amount","ask_price","bid_price","bid_amount"]
[1745664997108,1.10643,1807.1,1807.0,8.4995]
[1745664997304,2.77967,1807.2,1807.0,8.4995]
[1745664997509,5.98743,1807.2,1807.1,1.6076]
[1745664998716,4.8811,1807.2,1807.1,1.6076]
[1745664999015,5.98743,1807.2,1807.1,1.6076]
[1745665003707,1.10639,1807.1,1807.0,1.5839]
[1745665003918,2.80409,1807.1,1807.0,3.2035]
[1745665006820,1.10639,1807.1,1807.0,4.30995]
[1745665007418,1.10639,1807.1,1807.0,3.2035]
[1745665008121,2.67399,1807.1,1807.0,3.2035]
[1745665020036,2.67399,1807.1,1807.0,3.2035]
[1745665021232,2.67399,1807.1,1806.7,6.8938]
[1745665021233,1.5676,1807.1,1806.7,6.8938]
[1745665021435,1.10657,1806.8,1806.7,3.686]
[1745665021636,1.10657,1806.8,1806.7,4.5173]
[1745665021848,1.10657,1806.8,1806.7,2.5403]
[1745665022336,4.31428,1807.0,1806.8,1.10657]
[1745665022537,4.31428,1807.0,1806.9,2.5755]
[1745665023140,4.31428,1807.0,1806.9,7.8835]
[1745665024042,3.2078,1807.0,1806.9,8.99001]
[1745665024243,4.31425,1807.0,1806.9,2.5755]
[1745665026846,1.10645,1807.0,1806.9,2.5755]
[1745665027141,1.10645,1807.0,1806.9,3.68201]
[1745665027349,1.10645,1807.0,1806.9,2.5755]
[1745665028277,1.10645,1807.0,1806.9,3.68201]
[1745665028442,1.10645,1807.0,1806.9,2.5755]
[1745665028948,5.99362,1807.1,1806.9,3.68199]
[1745665029137,5.99362,1807.1,1807.0,1.738]
[1745665029342,5.99362,1807.1,1807.0,2.5786]
[1745665030545,5.99362,1807.1,1807.0,3.68505]
[1745665031142,4.8872,1807.1,1807.0,3.68505]
[1745665031641,3.2078,1807.1,1807.0,3.68505]
[1745665033742,1.10653,1806.9,1806.6,3.2078]
[1745665033945,3.2078,1806.9,1806.6,2.5211]
[1745665034140,1.10663,1806.7,1806.5,6.41475]
[1745665034344,1.7194,1806.6,1806.5,5.308]
[1745665034539,1.7194,1806.6,1806.5,6.41475]
[1745665034842,1.7194,1806.6,1806.5,8.09925]
[1745665035241,1.7194,1806.6,1806.5,6.9925]
[1745665035440,1.7194,1806.6,1806.5,8.09925]
[1745665037954,1.7194,1806.6,1806.5,6.9925]
[1745665038348,1.7194,1806.6,1806.5,8.09925]
[1745665038844,1.7194,1806.6,1806.5,6.9925]
[1745665039147,2.82609,1806.6,1806.5,6.9925]
[1745665041188,1.7194,1806.6,1806.5,8.09925]
[1745665042145,1.93301,1806.8,1806.6,1.10669]
[1745665042346,3.63661,1806.8,1806.6,1.5853]
[1745665042645,3.63661,1806.8,1806.7,0.7863]
[1745665042853,1.10666,1806.7,1806.5,6.41471]
[1745665043052,2.81026,1806.7,1806.5,8.78631]
[1745665044653,1.7036,1806.7,1806.6,1.10669]
[1745665044847,2.81023,1806.7,1806.6,2.71869]
[1745665045452,2.81023,1806.7,1806.6,1.612]
[1745665047050,4.31433,1806.9,1806.6,1.612]
[1745665047252,4.31433,1806.9,1806.7,1.96472]
[1745665047451,4.31433,1806.9,1806.8,1.7142]
[1745665047791,4.31433,1806.9,1806.8,2.5388]
[1745665048054,4.31433,1806.9,1806.8,7.8468]
[1745665048359,1.10653,1806.9,1806.8,7.8468]
[1745665048854,2.78159,1807.0,1806.8,8.95337]
[1745665049045,2.78159,1807.0,1806.9,1.7142]
[1745665049250,4.31422,1807.1,1806.9,2.82071]
[1745665049451,4.31422,1807.1,1807.0,0.8482]
[1745665049648,5.97602,1807.1,1807.0,2.5624]
[1745665050049,1.10649,1807.0,1806.8,6.1326]
[1745665050249,2.76829,1807.0,1806.8,3.64536]
[1745665050455,4.31431,1806.9,1806.8,2.5388]
[1745665050656,5.89231,1806.9,1806.8,2.5388]
[1745665051057,1.578,1806.9,1806.8,2.5388]
[1745665051368,1.578,1806.9,1806.8,7.8468]
[1745665051972,2.68451,1806.9,1806.8,7.8468]
[1745665052674,1.578,1806.9,1806.8,7.8468]
[1745665053073,2.68451,1806.9,1806.8,7.8468]
[1745665053272,1.578,1806.9,1806.8,7.8468]
[1745665053576,2.68451,1806.9,1806.8,7.8468]
[1745665054269,2.68451,1806.9,1806.8,5.308]
[1745665055175,5.89231,1806.9,1806.8,5.308]
[1745665056078,12.6390687,1806.9,1806.3,3.684]
[1745665056277,1.10674,1806.6,1806.3,6.9516]
[1745665056487,1.6821,1806.5,1806.4,1.6886]
[1745665057071,1.10665,1806.7,1806.4,6.9966]
[1745665057277,1.6821,1806.7,1806.5,1.6886]
[1745665057575,2.78876,1806.7,1806.5,1.6886]
[1745665057776,2.78876,1806.7,1806.6,0.8161]
[1745665058276,2.78876,1806.7,1806.6,1.6716]
[1745665058473,2.78876,1806.7,1806.6,3.3602]
[1745665059574,1.10666,1806.7,1806.6,3.3602]
[1745665060683,2.74426,1806.7,1806.6,3.3602]
[1745665062083,2.74426,1806.7,1806.6,0.8161]
[1745665063385,1.10669,1806.6,1806.5,6.9103]
[1745665063594,2.78579,1806.6,1806.5,6.9103]
[1745665065885,1.10669,1806.6,1806.5,6.9103]
[1745665073583,2.74189,1806.6,1806.5,6.9103]
[1745665078294,2.74189,1806.6,1806.5,5.308]
[1745665078505,3.51759,1806.6,1806.5,5.308]
[1745665079103,2.74189,1806.6,1806.5,5.308]
[1745665080604,2.74189,1806.6,1806.5,7.0246]
[1745665083601,1.10669,1806.6,1806.5,7.0246]
[1745665084613,2.80369,1806.6,1806.5,7.0246]
[1745665086917,7.80369,1806.6,1806.5,3.00027]
[1745665087115,1.107,1806.1,1806.0,3.3186]
[1745665088317,1.107,1806.1,1806.0,8.6266]
[1745665088514,2.80758,1806.2,1806.0,8.6266]
[1745665088716,1.10698,1806.2,1806.1,1.6386]
[1745665089618,4.31472,1806.3,1806.1,1.6386]
[1745665090131,1.10692,1806.3,1806.1,1.6386]
[1745665090320,1.10694,1806.2,1806.1,1.6386]
[1745665091717,1.10685,1806.4,1806.1,1.6386]
[1745665091918,1.10685,1806.4,1806.1,2.74555]
[1745665092244,4.0061,1806.5,1806.1,1.6386]
[1745665092420,1.10688,1806.3,1806.2,1.6018]
[1745665092811,2.73588,1806.3,1806.2,1.6018]
[1745665093215,2.73588,1806.3,1806.2,6.9098]
[1745665093618,2.73588,1806.3,1806.2,5.308]
[1745665093824,5.94368,1806.3,1806.2,5.308]
[1745665100314,10.94368,1806.3,1806.2,3.67574]
[1745665100616,1.10724,1805.7,1805.6,2.543]
[1745665100821,4.31504,1805.7,1805.6,2.543]
[1745665105132,4.31504,1805.7,1805.6,0.8057]
[1745665105426,1.10731,1805.6,1805.5,6.1011]
[1745665105627,2.78081,1805.6,1805.5,6.9064]
[1745665106419,3.65021,1805.6,1805.5,6.9064]
[1745665108121,3.65021,1805.6,1805.5,6.1133]
[1745665108664,3.73708542,1805.6,1805.5,5.308]
[1745665109131,1.10737,1805.5,1805.4,0.02573]
[1745665109330,5.96597,1805.5,1805.4,0.02573]
[1745665110231,6.74187,1805.5,1805.4,5.33373]
[1745665110430,6.82876659,1805.5,1805.4,5.33373]
[1745665111032,6.05286659,1805.5,1805.4,5.33373]
[1745665111233,5.96597,1805.5,1805.4,6.14053]
[1745665113122,3.2078,1805.5,1805.4,6.14053]
[1745665113336,1.10733,1805.6,1805.4,6.14053]
[1745665113538,1.10733,1805.6,1805.5,2.5605]
[1745665114135,1.10733,1805.6,1805.5,7.8685]
[1745665115038,1.10733,1805.6,1805.5,5.308]
[1745665115242,2.77473,1805.6,1805.5,5.308]
[1745665115431,2.77473,1805.6,1805.5,6.0936]
[1745665116034,2.77473,1805.6,1805.5,5.308]
[1745665116235,7.77473,1805.6,1805.5,5.308]
[1745665116441,7.86162297,1805.6,1805.5,5.308]
[1745665116740,2.86162297,1805.6,1805.5,5.308]
[1745665117938,1.19421971,1805.6,1805.5,5.308]
[1745665118142,1.10733,1805.6,1805.5,7.7608]
[1745665119841,2.81213,1805.6,1805.5,7.7608]
[1745665123749,1.10733,1805.6,1805.5,7.7608]
[1745665127848,4.31508,1805.7,1805.5,7.7608]
[1745665128144,4.31508,1805.7,1805.6,1.6164]
[1745665128344,4.31508,1805.7,1805.6,2.4439]
[1745665131345,4.31508,1805.7,1805.6,0.8275]
[1745665131648,5.11148,1805.7,1805.6,0.8275]
[1745665132150,6.71498,1805.7,1805.6,0.8275]
[1745665132447,5.91858,1805.7,1805.6,0.8275]
[1745665132643,4.31508,1805.7,1805.6,2.4235]
[1745665136340,3.2078,1805.7,1805.6,2.4235]
[1745665137257,3.2078,1805.7,1805.6,3.53081]
[1745665137449,3.2078,1805.7,1805.6,2.4235]
[1745665138650,4.31504,1805.7,1805.6,2.4235]
[1745665139652,4.31504,1805.7,1805.6,3.53081]
[1745665140446,4.31504,1805.7,1805.6,2.4235]
[1745665141648,4.31504,1805.7,1805.6,3.53081]
[1745665141849,3.2078,1805.7,1805.6,2.4235]
[1745665142649,3.2078,1805.7,1805.6,3.53081]
[1745665144554,3.2078,1806.2,1805.6,3.53081]
[1745665144857,1.7319,1806.2,1805.7,4.50422]
[1745665145066,1.10702,1806.1,1805.9,1.10708]
[1745665145302,1.10702,1806.1,1806.0,2.4472]
[1745665145460,2.77622,1806.1,1806.0,2.4472]
[1745665146158,2.77622,1806.1,1806.0,7.7552]
[1745665146559,2.77622,1806.1,1806.0,6.1007]
[1745665147651,2.77622,1806.1,1806.0,5.308]
[1745665149554,2.7762,1806.1,1806.0,5.308]
[1745665150482,1.6692,1806.1,1806.0,5.308]
[1745665150656,2.7762,1806.1,1806.0,5.308]
[1745665152963,5.984,1806.1,1806.0,5.308]
[1745665153849,2.7762,1806.1,1806.0,5.308]
[1745665154056,5.984,1806.1,1806.0,5.308]
[1745665155261,1.10712,1805.9,1805.8,5.308]
[1745665155893,6.03802,1805.9,1805.8,5.308]
[1745665157262,11.03802,1805.9,1805.8,4.18796]
[1745665157565,14.80494021,1805.9,1805.8,2.63194]
[1745665158260,1.10749,1805.3,1805.2,1.6875]
[1745665158464,1.10749,1805.3,1805.2,3.3427]
[1745665159360,1.5691,1805.4,1805.2,8.6507]
[1745665159361,2.67657,1805.4,1805.2,8.6507]
[1745665159557,2.67657,1805.4,1805.3,1.6552]
[1745665159758,3.2078,1805.5,1805.3,1.6552]
[1745665159959,4.31522,1805.5,1805.3,1.6552]
[1745665160162,4.31522,1805.5,1805.3,6.9632]
[1745665160366,6.03132,1805.5,1805.4,1.6074]
[1745665161162,6.03132,1805.5,1805.4,6.9154]
[1745665161363,6.03132,1805.5,1805.4,5.308]
[1745665162361,6.80612,1805.5,1805.4,5.308]
[1745665163876,6.89307201,1805.5,1805.4,5.308]
[1745665168376,6.89310819,1805.5,1805.4,5.308]
[1745665169271,6.11830819,1805.5,1805.4,5.308]
[1745665169957,6.11829807,1805.5,1805.4,5.308]
[1745665170664,6.03132,1805.5,1805.4,5.308]
[1745665172667,6.03132,1805.5,1805.4,6.1334]
[1745665174170,6.11828278,1805.5,1805.4,6.1334]
[1745665174372,6.03132,1805.5,1805.4,6.1334]
[1745665175967,3.2078,1805.5,1805.4,6.1334]
[1745665176168,4.31517,1805.5,1805.4,7.8053]
[1745665179172,3.2078,1805.5,1805.4,8.91273]
[1745665179478,4.31517,1805.5,1805.4,7.8053]
[1745665183877,3.2078,1805.5,1805.4,7.8053]
[1745665184877,3.2078,1805.5,1805.4,8.91273]
[1745665188183,3.2078,1805.7,1805.6,1.10729]
[1745665188982,3.2078,1805.7,1805.6,2.78679]
[1745665191476,1.10731,1805.6,1805.5,6.1441]
[1745665191886,3.55451,1805.6,1805.5,6.1441]
[1745665193786,2.4472,1805.6,1805.5,7.25147]
[1745665193987,2.4472,1805.6,1805.5,7.7913]
[1745665195384,3.55451,1805.6,1805.5,7.7913]
[1745665196394,2.4472,1805.6,1805.5,7.7913]
[1745665197488,3.55451,1805.6,1805.5,7.7913]
[1745665197987,8.55451,1805.6,1805.5,5.308]
[1745665198191,8.30931143,1805.6,1805.1,3.252]
[1745665198393,1.10743,1805.4,1805.1,3.252]
[1745665198586,2.6756,1805.3,1805.1,3.252]
[1745665198784,1.5681,1805.3,1805.1,3.252]
[1745665198984,2.67559,1805.3,1805.2,1.6488]
[1745665199180,2.67559,1805.3,1805.1,0.8105]
[1745665199181,1.10755,1805.2,1805.1,0.8105]
[1745665199395,1.10766,1805.1,1804.9,0.7927]
[1745665199593,3.53227,1805.2,1804.9,2.68961]
[1745665199895,3.53227,1805.2,1805.0,1.6367]
[1745665200492,2.4247,1805.2,1805.0,1.6367]
[1745665200895,3.53226,1805.2,1805.0,1.6367]
[1745665201098,3.53226,1805.2,1805.0,6.9447]
[1745665201504,3.53226,1805.2,1805.1,1.6367]
[1745665202004,3.53225,1805.2,1805.1,1.6367]
[1745665202697,1.10761,1805.1,1805.0,5.308]
[1745665202903,2.70671,1805.1,1805.0,5.308]
[1745665203408,1.96418,1805.2,1805.0,5.308]
[1745665203604,1.10759,1805.2,1805.0,7.0071]
[1745665203903,1.10761,1805.1,1805.0,7.0071]
[1745665204800,1.91671,1805.1,1805.0,7.0071]
[1745665205604,1.91671,1805.1,1805.0,5.308]
[1745665205802,5.21147473,1805.1,1805.0,5.308]
[1745665206306,10.21147473,1805.1,1805.0,5.308]
[1745665206705,11.87740914,1805.1,1805.0,5.308]
[1745665206906,6.87740914,1805.1,1805.0,5.308]
[1745665207794,6.79046032,1805.1,1805.0,5.308]
[1745665208000,5.68285032,1805.1,1805.0,5.308]
[1745665208401,5.68285032,1805.1,1805.0,6.9845]
[1745665208601,4.87375032,1805.1,1805.0,6.9845]
[1745665209408,3.29475032,1805.1,1805.0,8.09217]
[1745665209905,0.08695032,1805.1,1805.0,8.09217]
[1745665210428,1.19456032,1805.1,1805.0,6.9845]
[1745665211002,0.08695032,1805.1,1805.0,6.9845]
[1745665211813,0.08695032,1805.1,1805.0,8.09217]
[1745665213013,0.08695032,1805.1,1805.0,6.9845]
[1745665213610,0.08695032,1805.1,1805.0,8.09217]
[1745665213809,0.08695032,1805.1,1805.0,6.9845]
[1745665214413,1.19456032,1805.1,1805.0,6.9845]
[1745665214916,0.08695032,1805.1,1805.0,8.09217]
[1745665215112,1.19456032,1805.1,1805.0,6.9845]
[1745665217013,9.48934047,1805.1,1805.0,4.01396]
[1745665217315,9.48934047,1805.1,1804.4,7.05]
[1745665217316,1.10795,1804.6,1804.4,7.05]
[1745665217616,1.10795,1804.6,1804.5,1.702]
[1745665218117,1.10795,1804.6,1804.5,7.01]
[1745665218512,2.8142,1804.7,1804.5,7.01]
[1745665218815,1.7063,1804.7,1804.5,7.01]
[1745665219115,1.10786,1804.7,1804.6,1.6446]
[1745665220319,2.81416,1804.7,1804.6,1.6446]
[1745665221309,1.7063,1804.7,1804.5,5.308]
[1745665221512,2.81172,1804.6,1804.5,5.308]
[1745665221905,2.81172,1804.6,1804.5,6.9597]
[1745665222111,2.81172,1804.6,1804.5,5.308]
[1745665224319,6.01952,1804.6,1804.5,5.308]
[1745665224821,14.78246634,1804.6,1804.5,2.75039]
[1745665225010,14.78246634,1804.6,1804.3,0.03287]
[1745665225011,1.10835,1803.9,1803.8,0.8189]
[1745665225211,4.31615,1803.9,1803.8,0.8189]
[1745665225412,1.10835,1803.9,1803.8,0.8189]
[1745665225619,2.4274,1804.1,1803.8,0.8189]
[1745665225922,6.8838,1804.2,1803.9,1.6807]
[1745665226109,7.99202,1804.2,1803.9,7.8229]
[1745665226315,4.31602,1804.2,1803.9,7.8229]
[1745665226612,1.10823,1804.1,1804.0,1.6807]
[1745665227221,1.10823,1804.1,1804.0,6.9887]
[1745665228226,1.10823,1804.1,1804.0,5.308]
[1745665228518,2.73393,1804.1,1804.0,5.308]
[1745665228725,8.59685069,1804.1,1804.0,5.308]
[1745665229423,3.59685069,1804.1,1804.0,5.308]
[1745665229620,2.73393,1804.1,1804.0,5.308]
[1745665232047,1.10823,1804.1,1804.0,6.9771]
[1745665235820,7.99201,1804.2,1804.0,6.9771]
[1745665236025,7.99201,1804.2,1804.1,1.6267]
[1745665236326,7.99201,1804.2,1804.1,2.4364]
[1745665236823,1.10823,1804.1,1804.0,5.308]
[1745665237415,1.10823,1804.1,1804.0,6.9347]
[1745665237920,1.10821,1804.2,1804.0,6.9347]
[1745665238118,1.10821,1804.2,1804.1,1.6267]
[1745665241424,1.10823,1804.1,1804.0,5.308]
[1745665241624,2.67443,1804.1,1804.0,6.8823]
[1745665242620,5.88223,1804.1,1804.0,5.308]
[1745665243221,5.96908624,1804.1,1804.0,5.308]
[1745665243538,5.88223,1804.1,1804.0,5.308]
[1745665243727,14.64608573,1804.1,1804.0,4.04549]
[1745665245526,14.64608573,1804.1,1804.0,2.87811]
[1745665245926,14.64607183,1804.1,1804.0,2.87811]
[1745665246433,18.50147183,1804.1,1803.2,3.2078]
[1745665246730,3.2078,1803.9,1803.3,1.593]
[1745665246926,1.10845,1803.8,1803.4,1.10864]
[1745665247126,1.10849,1803.7,1803.5,2.4417]
[1745665247432,1.6363,1803.8,1803.6,1.593]
[1745665247627,1.10847,1803.7,1803.6,1.593]
[1745665247926,1.10845,1803.8,1803.6,1.593]
[1745665248627,4.8441,1803.9,1803.6,1.593]
[1745665248832,3.2078,1803.9,1803.7,1.10844]
[1745665249132,3.678,1804.0,1803.8,1.7041]
[1745665249431,1.10835,1803.9,1803.8,1.7041]
[1745665250136,1.10835,1803.9,1803.8,7.0121]
[1745665251634,2.80194,1804.0,1803.8,7.0121]
[1745665251930,2.80194,1804.0,1803.9,1.7349]
[1745665252230,1.10834,1804.0,1803.9,7.0429]
[1745665253424,1.10834,1804.0,1803.9,5.308]
[1745665253628,1.9724716,1804.0,1803.9,5.308]
[1745665254028,1.97247074,1804.0,1803.9,5.308]
[1745665254326,10.64947074,1804.0,1803.9,5.308]
[1745665255230,1.10853,1803.6,1803.5,0.8436]
[1745665255437,1.10866,1803.4,1803.3,1.6238]
[1745665255635,1.10866,1803.4,1803.3,2.4831]
[1745665256136,1.10866,1803.4,1803.3,7.7911]
[1745665256336,1.05866,1803.4,1803.3,7.7911]
[1745665257239,1.05866,1803.4,1803.3,0.8593]
[1745665257536,1.10878,1803.2,1803.1,2.444]
[1745665257733,1.10878,1803.2,1803.1,3.2978]
[1745665257952,1.10878,1803.2,1803.0,44.0078]
[1745665258138,1.10884,1803.1,1803.0,47.6913]
[1745665258332,1.10884,1803.1,1803.0,5.308]
[1745665259738,7.99464,1803.1,1803.0,4.00073]
[1745665259929,8.08142489,1803.1,1803.0,4.00073]
[1745665260130,1.10914,1802.7,1802.5,1.7431]
[1745665260435,3.2078,1802.9,1802.5,1.6845]
[1745665260733,1.10915,1802.6,1802.5,1.6845]
[1745665261040,1.10915,1802.6,1802.2,0.0586]
[1745665261041,1.10933,1802.3,1802.2,0.0586]
[1745665261333,1.10946,1802.1,1802.0,3.2078]
[1745665261839,1.10946,1802.1,1802.0,8.2078]
[1745665262244,1.10946,1802.1,1802.0,5.308]
[1745665263131,1.10946,1802.1,1801.9,1.7028]
[1745665263539,1.10952,1802.0,1801.9,1.7028]
[1745665264037,1.10952,1802.0,1801.9,6.7028]
[1745665264239,1.10952,1802.0,1801.9,12.0108]
[1745665264648,1.10952,1802.0,1801.9,7.0108]
[1745665264937,3.2078,1802.4,1801.9,12.0108]
[1745665265137,1.10932,1802.4,1802.2,3.2078]
[1745665265332,1.10932,1802.4,1802.3,1.6485]
[1745665266141,1.10932,1802.4,1802.3,6.9565]
[1745665266527,3.2078,1802.6,1802.3,6.9565]
[1745665266833,1.10927,1802.4,1802.3,6.9565]
[1745665267230,1.10927,1802.4,1802.3,1.6485]
[1745665268134,5.2712,1802.5,1802.3,1.6485]
[1745665268333,6.38045,1802.5,1802.3,1.6485]
[1745665268538,5.2712,1802.5,1802.3,1.6485]
[1745665269736,3.2078,1802.4,1802.3,1.6485]
[1745665269941,6.77947,1802.4,1802.3,1.6485]
[1745665270141,10.6702,1802.4,1801.7,5.918]
[1745665270335,3.2078,1802.1,1801.8,1.6857]
[1745665270538,3.2078,1802.1,1801.9,1.10952]
[1745665270838,3.2078,1802.4,1801.8,4.8935]
[1745665271044,3.2078,1802.4,1802.3,1.10933]
[1745665271637,3.2078,1802.4,1802.2,1.10935]
[1745665271837,3.2078,1802.4,1802.3,1.6857]
[1745665272037,3.2078,1802.4,1802.3,2.79503]
[1745665273142,3.2078,1802.8,1802.3,6.6857]
[1745665273333,3.2078,1802.8,1802.0,3.2078]
[1745665273543,5.73206266,1802.9,1801.6,5.918]
[1745665273544,3.2078,1802.2,1801.9,1.10958]
[1745665273846,3.2078,1802.2,1801.6,1.664]
[1745665273847,3.2078,1802.2,1802.0,0.8371]
[1745665274047,3.68,1802.3,1802.0,1.94659]
[1745665274241,4.78935,1802.3,1802.1,0.8269]
[1745665274743,3.68,1802.3,1802.2,1.10939]
[1745665274938,4.31709,1802.4,1802.0,0.8371]
[1745665275246,1.10934,1802.3,1802.1,0.8269]
[1745665275445,2.74734,1802.3,1802.1,0.8269]
[1745665275746,1.10939,1802.2,1802.1,0.8269]
[1745665275952,1.6797,1802.2,1802.1,0.8269]
[1745665276145,1.10946,1802.1,1802.0,0.8371]
[1745665276446,4.8875,1802.2,1802.0,0.8371]
[1745665276647,1.10946,1802.1,1802.0,0.8371]
[1745665276847,2.78916,1802.1,1802.0,0.8371]
[1745665277049,3.65366,1802.1,1802.0,0.8371]
[1745665277249,1.10954,1802.0,1801.8,0.7848]
[1745665277450,2.78924,1802.0,1801.8,0.7848]
[1745665277641,1.10958,1801.9,1801.8,0.7848]
[1745665277836,2.78926,1802.0,1801.8,0.7848]
[1745665278045,2.78926,1802.0,1801.8,2.4424]
[1745665278245,1.6797,1801.9,1801.8,2.4424]
[1745665278848,1.6797,1801.9,1801.8,3.2819]
[1745665279046,1.6797,1801.9,1801.8,4.39154]
[1745665279245,1.6797,1801.9,1801.8,3.2819]
[1745665279444,1.6797,1801.9,1801.8,4.39154]
[1745665280052,1.97399,1802.1,1801.8,4.39154]
[1745665280246,1.5774,1802.0,1801.8,4.39154]
[1745665280552,2.68692,1802.0,1801.9,1.6825]
[1745665280748,1.5774,1802.0,1801.9,1.6825]
[1745665281152,6.8854,1802.0,1801.9,1.6825]
[1745665281648,6.8854,1802.0,1801.9,2.79208]
[1745665281955,6.8854,1802.0,1801.9,1.6825]
[1745665282154,1.5774,1802.0,1801.9,1.6825]
[1745665282452,1.5774,1802.0,1801.9,2.79208]
[1745665282669,6.8878,1802.2,1801.9,1.6825]
[1745665282853,6.8878,1802.2,1802.0,1.10948]
[1745665283154,6.8878,1802.2,1802.1,1.6556]
[1745665283747,6.8878,1802.2,1802.1,2.76506]
[1745665283951,3.2078,1802.2,1802.1,2.76506]
[1745665284255,3.2078,1802.4,1802.3,1.10933]
[1745665284955,3.2078,1802.4,1802.3,2.76493]
[1745665285156,8.5158,1802.4,1802.3,1.6556]
[1745665285357,8.5158,1802.4,1802.3,2.76493]
[1745665285958,9.62507,1802.4,1802.3,1.6556]
[1745665286553,8.5158,1802.4,1802.3,1.6556]
[1745665286751,8.5158,1802.4,1802.3,2.76493]
[1745665287158,3.2078,1802.4,1802.3,2.76493]
[1745665288046,4.31699,1802.6,1802.4,1.10926]
[1745665288251,4.31699,1802.6,1802.4,2.80346]
[1745665288755,4.31699,1802.6,1802.5,42.4942]
[1745665289152,11.23539,1802.6,1802.5,42.4942]
[1745665289562,1.10933,1802.3,1802.2,0.8252]
[1745665290097,3.53644,1802.5,1802.2,41.6252]
[1745665290259,5.308,1802.3,1802.2,41.6252]
[1745665290660,6.41733,1802.3,1802.2,0.8252]
[1745665290960,6.41733,1802.3,1801.8,6.01164]
[1745665290961,8.5158,1802.3,1801.8,6.01164]
[1745665291161,2.78724,1802.2,1801.9,2.79197]
[1745665291460,1.6778,1802.1,1802.0,1.6824]
[1745665291657,1.6778,1802.1,1802.0,2.79192]
[1745665291861,6.9858,1802.3,1802.1,1.10945]
[1745665292158,1.6778,1802.3,1802.2,1.6824]
[1745665292360,2.77349,1802.2,1801.4,3.2078]
[1745665292556,3.2078,1801.8,1801.3,2.79233]
[1745665292757,2.5054,1801.7,1801.4,1.6824]
[1745665292964,1.6778,1801.6,1801.5,1.10983]
[1745665293154,1.6778,1801.6,1801.5,1.6824]
[1745665293661,1.6778,1801.6,1801.5,2.79223]
[1745665294756,1.6778,1801.6,1801.5,1.10983]
[1745665294967,1.6778,1801.6,1801.4,40.8]
[1745665295259,1.6778,1801.6,1801.5,1.10983]
[1745665298258,1.6778,1801.6,1801.5,2.75143]
[1745665299157,1.6778,1801.6,1801.5,1.6416]
[1745665299663,1.6778,1801.6,1801.5,2.75143]
[1745665299864,1.6778,1801.6,1801.5,1.6416]
[1745665300065,1.6778,1801.6,1801.4,40.8]
[1745665300563,1.6778,1801.6,1801.4,42.4234]
[1745665300969,2.78757,1801.6,1801.4,42.4234]
[1745665301564,1.6761,1801.5,1801.4,42.4234]
[1745665301963,0.8276,1801.7,1801.4,43.53328]
[1745665302160,1.10972,1801.7,1801.5,3.57052]
[1745665302363,1.10972,1801.7,1801.6,2.4776]
[1745665302868,2.78582,1801.7,1801.6,2.4776]
[1745665306272,1.6761,1801.7,1801.6,2.4776]
[1745665306661,1.6761,1801.7,1801.2,3.2078]
[1745665306970,1.11013,1801.0,1800.7,0.02297]
[1745665307159,1.11026,1800.8,1800.7,0.02297]
[1745665307366,2.4824,1800.9,1800.7,0.02297]
[1745665307570,1.11026,1800.8,1800.7,0.02297]
[1745665307875,2.77776,1800.8,1800.7,0.02297]
[1745665308169,10.98556,1800.8,1800.7,0.02297]
[1745665308470,2.77518,1801.2,1800.7,0.02297]
[1745665308471,3.2078,1801.2,1800.7,5.02297]
[1745665308668,4.31783,1801.2,1800.8,0.8692]
[1745665308970,3.2078,1801.2,1800.9,1.6395]
[1745665309175,1.6462,1801.1,1800.9,1.6395]
[1745665309574,2.75628,1801.1,1800.9,1.6395]
[1745665309770,1.11013,1801.0,1800.9,1.6395]
[1745665309966,1.1102,1800.9,1800.8,5.308]
[1745665310174,1.1102,1800.9,1800.7,0.02297]
[1745665310470,1.11021,1800.9,1800.7,2.49977]
[1745665310673,1.11026,1800.8,1800.7,0.02297]
[1745665310968,4.31806,1800.8,1800.7,0.02297]
[1745665311173,5.14116,1800.8,1800.7,0.02297]
[1745665311667,6.78736,1800.8,1800.7,0.02297]
[1745665311869,3.2078,1801.2,1800.7,6.63557]
[1745665312175,3.2078,1801.2,1801.0,1.11011]
[1745665312366,4.31764,1801.5,1801.2,1.10998]
[1745665312566,4.31764,1801.5,1801.3,2.4592]
[1745665312769,4.31764,1801.5,1801.2,41.90998]
[1745665313073,2.68679,1801.4,1801.2,40.8]
[1745665313273,1.10995,1801.3,1801.2,6.9275]
[1745665313470,2.68685,1801.3,1801.2,5.308]
[1745665313776,4.31763,1801.5,1801.2,48.83746]
[1745665314069,4.31765,1801.5,1801.2,47.7275]
[1745665314275,4.31765,1801.5,1801.2,42.4195]
[1745665314481,1.5769,1801.4,1801.2,42.4195]
[1745665315070,2.68681,1801.4,1801.2,42.4195]
[1745665315376,1.5769,1801.4,1801.1,0.8404]
[1745665315671,0.8232,1801.3,1801.1,0.8404]
[1745665315969,1.6285,1801.2,1801.1,0.8404]
[1745665317075,1.6285,1801.2,1801.0,6.813]
[1745665317279,1.6285,1801.2,1801.1,1.11007]
[1745665317576,1.6285,1801.2,1801.1,2.76547]
[1745665318178,0.8232,1801.3,1801.2,1.11001]
[1745665318380,0.8232,1801.3,1801.2,2.74521]
[1745665319274,0.8232,1801.3,1801.2,1.6352]
[1745665319778,2.3938,1801.3,1801.2,1.6352]